[Event "1000GM Schev-C-B February 2024"]
[Site "Santa Clara"]
[Date "2024.02.24"]
[Round "1.1"]
[White "Xia, Joshua"]
[Black "Gongora Montes, Benjamin"]
[Result "0-1"]
[ECO "C78"]
[WhiteElo "1922"]
[BlackElo "2173"]
[Annotator "RC"]
[PlyCount "62"]
[EventDate "2024.02.13"]
[EventType "schev"]
[EventCountry "USA"]
[SourceTitle "playchess.com"]
[Source "ChessBase"]
[SourceQuality "1"]
[TimeControl "5400+30"]

1. e4 {[%emt 0:03:30]} e5 {[%emt 0:00:24]} 2. Nf3 {[%emt 0:00:14]} Nc6 {[%emt 0:00:08]} 3. Bb5 {[%emt 0:00:09]} a6 {[%emt 0:00:07]} 4. Ba4 {[%emt 0:00:09]} Nf6 {[%emt 0:00:07]} 5. O-O {[%emt 0:00:11]} b5 {[%emt 0:00:06]} 6. Bb3 {[%emt 0:00:17]} Bc5 {[%emt 0:00:23]} 7. a4 {[%emt 0:00:10]} Bb7 {[%emt 0:00:17]} 8. c3 {[%emt 0:01:03]} d6 {[%emt 0:00:09]} 9. d4 {[%emt 0:00:14]} Bb6 {[%emt 0:00:07]} 10. Bg5 {[%emt 0:01:40]} h6 {[%emt 0:00:11]} 11. Bh4 {[%emt 0:00:20]} O-O {[%emt 0:00:32]} 12. Re1 {[%emt 0:00:57]} Re8 {[%emt 0:00:46]} 13. axb5 {[%emt 0:16:32]} axb5 {[%emt 0:00:09]} 14. Rxa8 {[%emt 0:02:39]} Bxa8 {[%emt 0:00:08]} 15. Qd2 {[%emt 0:02:01]} Bb7 {[%emt 0:14:09]} 16. h3 {[%emt 0:06:48]} Qe7 {[%emt 0:03:57]} 17. Na3 {[%emt 0:12:48]} exd4 {[%emt 0:00:27]} 18. cxd4 {[%emt 0:00:57]} Ba5 {[%emt 0:00:19]} 19. Qd3 {[%emt 0:16:11]} Bxe1 {[%emt 0:00:17]} 20. Qxb5 {[%emt 0:00:56]} Ba8 {[%emt 0:06:11]} 21. Bxf6 {[%emt 0:07:18]} Qxf6 {[%emt 0:01:00]} 22. Nxe1 {[%emt 0:00:34]} Rb8 {[%emt 0:01:50]} 23. Qc4 {[%emt 0:09:37]} Nxd4 {[%emt 0:00:13]} 24. Qxc7 {[%emt 0:01:57]} Rxb3 {[%emt 0:00:12]} 25. Qc8+ {[%emt 0:00:18]} Kh7 {[%emt 0:00:07]} 26. Qxa8 {[%emt 0:01:46]} Rxb2 {[%emt 0:00:33]} 27. Nd3 {[%emt 0:01:59]} Rb3 {[%emt 0:02:07]} 28. Ne1 {[%emt 0:02:38]} Ne2+ {[%emt 0:01:10]} 29. Kf1 {[%emt 0:00:40]} Ng3+ {[%emt 0:00:09]} 30. Kg1 {[%emt 0:01:06]} Qa1 {[%emt 0:00:44]} 31. fxg3 {[%emt 0:02:41]} Qxe1+ {[%emt 0:00:12]} 0-1

[Event "1000GM Schev-C-B February 2024"]
[Site "Santa Clara"]
[Date "2024.02.24"]
[Round "1.2"]
[White "Qi, Jenny"]
[Black "Vidarte Morales, Arturo"]
[Result "0-1"]
[ECO "B78"]
[WhiteElo "1605"]
[BlackElo "2261"]
[Annotator "TA"]
[PlyCount "104"]
[EventDate "2024.02.13"]
[EventType "schev"]
[EventCountry "USA"]
[SourceTitle "playchess.com"]
[Source "ChessBase"]
[SourceQuality "1"]
[TimeControl "5400+30"]

{[%evp 25,104,7,62,58,86,77,79,92,86,70,80,79,83,57,64,0,0,-95,-38,-27,-36,-43,-52,-50,-32,-33,-33,-84,-80,-79,-82,-138,-142,-166,-166,-159,-107,-231,-173,-227,-220,-258,-225,-255,-267,-289,-245,-295,-287,-262,-216,-241,-231,-245,-245,-266,-268,-331,-313,-335,-318,-308,-171,-158,-163,-159,-95,-95,-92,-211,-121,-29965,-29961,-29965,-12813,-5057,-12778,-9896,-5057,-1859,0]} 1. e4 {[%emt 0:06:57]} c5 {[%emt 1:31:00]} 2. Nf3 g6 3. d4 cxd4 4. Nxd4 Bg7 5. Nc3 Nc6 6. Be3 d6 7. Qd2 Nf6 8. f3 O-O 9. Bc4 Bd7 10. h4 h5 11. O-O-O Rc8 12. Bb3 Ne5 13. Bg5 Qa5 (13... Rc5 $11) 14. Kb1 $1 $14 Rxc3 15. Qxc3 (15. bxc3 $6 Rc8 $11) 15... Qxc3 16. bxc3 {Weiß steht besser.} Rc8 17. Ne2 a5 18. a4 Be8 19. Nf4 Kf8 $1 20. Bxf6 (20. Nd5 $14 Nxd5 21. Rxd5) 20... Bxf6 $11 21. g4 Rxc3 (21... hxg4 $17 22. fxg4 Nxg4 (22... Rxc3 23. Nd5 $11)) 22. gxh5 $15 Rxf3 (22... Nxf3 $2 23. hxg6 Bxa4 24. Bxf7 (24. Bxa4 Ra3 $16) 24... Bxc2+ 25. Ka2 $18) 23. Rdf1 {Weiss hat schwache schwarze Felder} gxh5 24. Nxh5 {[#] Schwarz muss nun Rxf3 beachten.} Bxh4 $1 25. Rxf3 (25. Nf4 Bf6) 25... Nxf3 26. Ka2 {[#]} (26. Bd5 $15) 26... Bg5 $1 $17 {[%emt 0:00:00]} 27. Ng3 {[%emt 0:12:53]} Bf6 {[%emt 0:13:00] Wehrt Rh8+ ab} 28. Nf5 ({Günstiger ist} 28. Bd5) 28... Ng5 {[%emt 0:00:00]} 29. Ng3 {[%emt 1:25:10]} e6 {[%emt 0:00:00] Gegen Bd5 gerichtet.} 30. Rh5 {[%emt 0:00:00]} Ke7 {[%emt 0:00:00]} (30... Bc6 $142 {[%cal Of8g7]} 31. Ka3 b6 (31... Bxe4 32. Rxg5 Bxg5 33. Nxe4 $14)) 31. Rh6 {[%emt 0:00:00]} (31. c3 $17 {war einen Versuch wert.}) 31... Bc6 {[%emt 0:00:00][%cal Og5f3]} 32. Rh4 {[%emt 0:00:00]} (32. Rh5 {war nötig.}) 32... Be5 {[%emt 0:00:00] Das Läuferpaar ist gut.} 33. Rh5 {[%emt 0:02:00]} Nf3 (33... Bxg3 34. Rxg5 Be5 35. Rg4 $19) 34. Ne2 Bxe4 35. Nc1 Bg6 36. Rh1 Nd4 37. Nd3 Bf6 38. Rh2 Nc6 39. Bc4 d5 40. Bb5 Nd4 41. Kb1 Kd6 42. Rf2 Bg7 43. Nf4 Bxc2+ (43... Nxb5 $142 44. axb5 Bd4) 44. Rxc2 $19 Nxc2 45. Kxc2 Be5 (45... e5 $142 46. Nh5 Bf8) 46. Ne2 $17 f5 47. Kd3 (47. Be8 $17 {war angesagt.}) 47... Bg7 ({Besser ist} 47... Bf6 $19 48. Nc1 e5) 48. Nd4 $2 {[%mdl 8192]} (48. Kc2 $17) 48... Bxd4 49. Kxd4 e5+ (49... f4 $142 50. Be2 e5+ 51. Kd3 Kc5 52. Bg4 e4+ 53. Ke2 d4 54. Kd2 f3 55. Ke1 d3 56. Bc8 e3 57. Bxb7 f2+ 58. Kf1 Kc4 59. Bg2 Kc3 60. Bc6 d2 (60... Kd2 {wird mattgesetzt.} 61. Bg2 e2+ 62. Kxf2 e1=Q+ 63. Kf3 Qe2+ 64. Kf4 Qxg2 65. Kf5 Ke2 66. Ke6 d2 67. Kd7 d1=Q+ 68. Kc7 Qd4 69. Kc8 Qc6+ 70. Kb8 Qdb6#) 61. Bf3 Kc2 62. Be4+ Kc1 63. Bf3 d1=Q+ (63... d1=R+ 64. Bxd1 Kxd1 65. Kg2 Kd2 66. Kh3 f1=Q+ 67. Kg4 e2 68. Kg5 e1=Q 69. Kg4 Qe6+ 70. Kh4 Qh6+ 71. Kg4 Qfh3#) 64. Bxd1 Kxd1 65. Kg2 Kd2 (65... f1=Q+ 66. Kxf1 e2+ 67. Kg2 e1=Q 68. Kf3 Qe5 69. Kf2 Qf4+ 70. Kg2 Ke2 71. Kh3 Qg5 72. Kh2 Kf3 73. Kh3 Qh6#) (65... e2 {ist ein Selbstmatt.} 66. Kxf2 e1=Q+ 67. Kf3 Qe5 68. Kf2 Qf4+ 69. Kg2 Ke1 70. Kh3 Qg5 71. Kh2 Kf2 72. Kh3 Qh5#) 66. Kh3 e2 (66... f1=R {führt zum Matt.} 67. Kh4 e2 68. Kg5 e1=Q 69. Kg4 Qe4+ 70. Kh5 Rg1 71. Kh6 Qh4#) 67. Kg4 e1=Q (67... e1=N 68. Kf5 f1=Q+ 69. Ke6 Qa6+ 70. Kf5 Ke3 71. Ke5 Nd3+ 72. Kd5 Nf4+ 73. Kc5 Ne6+ 74. Kd5 Nd4 75. Ke5 Qe6#) 68. Kh4 f1=Q+ (68... f1=R+ 69. Kg4 Qe4+ 70. Kh3 Rg1 71. Kh2 Qh1#) 69. Kg4 Qe4+ 70. Kh5 Qh3+ 71. Kg5 Qhh4#) 50. Ke3 $19 {Schwarz steht klar auf Gewinn.} d4+ 51. Kf3 Kd5 52. Bd7 {[%emt 0:07:53] [#]} f4 $2 {[%emt 0:00:00][%mdl 32768] Gewichteter Fehlerwert: Weiß=0.42/Schwarz=0.40.  Verlustzug:     	Weiß=1     	---        Fehler:       	Weiß=7     	Schwarz=5     Ungenau:       	Weiß=1     	Schwarz=1     OK:         	Weiß=5     	Schwarz=10    Bester:       	Weiß=1     	Schwarz=2     Stark:        	---       	Schwarz=2    . Zeitüberschreitung!?} (52... e4+ $1 $19 53. Kf4 Kc4 54. Kxf5 Kd3 (54... e3 $2 55. Ke4 $19)) 0-1

[Event "1000GM Schev-C-B February 2024"]
[Site "Santa Clara"]
[Date "2024.02.24"]
[Round "1.3"]
[White "Widjaja, Luke"]
[Black "Gracia Alvarez, Gerardo Antonio"]
[Result "1-0"]
[ECO "C02"]
[WhiteElo "2037"]
[BlackElo "2224"]
[Annotator "RC"]
[PlyCount "163"]
[EventDate "2024.02.13"]
[EventType "schev"]
[EventCountry "USA"]
[SourceTitle "playchess.com"]
[Source "ChessBase"]
[SourceQuality "1"]
[TimeControl "5400+30"]

1. e4 {[%emt 0:00:03]} e6 {[%emt 0:00:05]} 2. d4 {[%emt 0:00:04]} d5 {[%emt 0:00:03]} 3. e5 {[%emt 0:00:19]} c5 {[%emt 0:00:04]} 4. c3 {[%emt 0:00:03]} Nc6 {[%emt 0:00:03]} 5. Nf3 {[%emt 0:00:03]} Bd7 {[%emt 0:00:06]} 6. Be2 {[%emt 0:00:05]} Nge7 {[%emt 0:00:05]} 7. Na3 {[%emt 0:00:06]} cxd4 {[%emt 0:00:23]} 8. cxd4 {[%emt 0:00:08]} Nf5 {[%emt 0:00:06]} 9. Nc2 {[%emt 0:00:06]} Qb6 {[%emt 0:00:08]} 10. O-O {[%emt 0:01:39]} Rc8 {[%emt 0:00:04]} 11. Kh1 {[%emt 0:06:41]} Na5 {[%emt 0:00:18]} 12. g4 {[%emt 0:10:05]} Ne7 {[%emt 0:00:07]} 13. Nh4 {[%emt 0:00:35]} Bb5 {[%emt 0:02:06]} 14. f4 {[%emt 0:05:12]} Bxe2 {[%emt 0:07:27]} 15. Qxe2 {[%emt 0:00:02]} Qa6 {[%emt 0:08:22]} 16. Qxa6 {[%emt 0:02:07]} bxa6 {[%emt 0:00:08]} 17. Ne3 {[%emt 0:05:00]} Nc4 {[%emt 0:12:59]} 18. f5 {[%emt 0:05:08]} Nc6 {[%emt 0:01:48]} 19. fxe6 {[%emt 0:08:25]} fxe6 {[%emt 0:00:07]} 20. b3 {[%emt 0:00:21]} Nxe3 {[%emt 0:02:28]} 21. Bxe3 {[%emt 0:00:02]} Ba3 {[%emt 0:01:43]} 22. Ng2 {[%emt 0:10:01]} Nb4 {[%emt 0:01:54]} 23. Rad1 {[%emt 0:05:43]} Rc6 {[%emt 0:00:45]} 24. h4 {[%emt 0:08:39]} Rf8 {[%emt 0:07:21]} 25. Nf4 {[%emt 0:01:34]} Nxa2 {[%emt 0:05:54]} 26. Ra1 {[%emt 0:04:47]} Bc1 {[%emt 0:00:04]} 27. Rfxc1 {[%emt 0:01:22]} Nxc1 {[%emt 0:00:08]} 28. Rxc1 {[%emt 0:00:02]} Rxc1+ {[%emt 0:01:01]} 29. Bxc1 {[%emt 0:00:01]} Kd7 {[%emt 0:01:32]} 30. Nd3 {[%emt 0:02:18]} Rf1+ {[%emt 0:01:17]} 31. Kg2 {[%emt 0:00:03]} Rd1 {[%emt 0:00:05]} 32. Nc5+ {[%emt 0:00:04]} Ke7 {[%emt 0:00:21]} 33. Be3 {[%emt 0:26:12]} Rb1 {[%emt 0:02:59]} 34. h5 {[%emt 0:00:00]} h6 {[%emt 0:00:34]} 35. g5 {[%emt 0:00:00]} hxg5 {[%emt 0:00:25]} 36. Bxg5+ {[%emt 0:00:00]} Kf7 {[%emt 0:00:04]} 37. Nb7 {[%emt 0:00:00]} Rb2+ {[%emt 0:17:38]} 38. Kf1 {[%emt 0:00:00]} Ke8 {[%emt 0:00:35]} 39. Nc5 {[%emt 0:00:00]} Kf7 {[%emt 0:00:06]} 40. h6 {[%emt 0:00:00]} gxh6 {[%emt 0:00:05]} 41. Bxh6 {[%emt 0:00:00]} Kg6 {[%emt 0:02:12]} 42. Be3 {[%emt 0:00:00]} Kf5 {[%emt 0:00:06]} 43. Ke1 {[%emt 0:00:00]} Rh2 {[%emt 0:06:27]} 44. Kd1 {[%emt 0:00:00]} a5 {[%emt 0:01:07]} 45. Bd2 {[%emt 0:00:00]} Rh4 {[%emt 0:00:05]} 46. Bc3 {[%emt 0:00:00]} Rh1+ {[%emt 0:00:32]} 47. Kc2 {[%emt 0:00:00]} Rh2+ {[%emt 0:00:04]} 48. Bd2 {[%emt 0:00:00]} Rg2 {[%emt 0:00:07]} 49. Kd3 {[%emt 0:00:00]} Rg3+ {[%emt 0:01:34]} 50. Be3 {[%emt 0:00:00]} Rg7 {[%emt 0:00:08]} 51. Bf2 {[%emt 0:00:00]} Rh7 {[%emt 0:00:17]} 52. Be3 {[%emt 0:00:00]} Rg7 {[%emt 0:00:04]} 53. Bc1 {[%emt 0:00:00]} Rg3+ {[%emt 0:00:29]} 54. Kc2 {[%emt 0:00:00]} Rg2+ {[%emt 0:00:35]} 55. Kb1 {[%emt 0:00:00]} Rg1 {[%emt 0:00:21]} 56. Kb2 {[%emt 0:00:03]} Rd1 {[%emt 0:00:18]} 57. Be3 {[%emt 0:00:15]} Rh1 {[%emt 0:02:37]} 58. Kc3 {[%emt 0:03:21]} Rh3 {[%emt 0:00:37]} 59. Kd3 {[%emt 0:00:04]} Rh7 {[%emt 0:00:12]} 60. Bf2 {[%emt 0:01:17]} Rh2 {[%emt 0:06:55]} 61. Be1 {[%emt 0:00:39]} Rh3+ {[%emt 0:05:47]} 62. Ke2 {[%emt 0:00:11]} Rh2+ {[%emt 0:01:28]} 63. Kf3 {[%emt 0:00:25]} Ra2 {[%emt 0:00:12]} 64. Bc3 {[%emt 0:00:17]} a4 {[%emt 0:02:08]} 65. Nxa4 {[%emt 0:00:15]} Rh2 {[%emt 0:00:46]} 66. Ke3 {[%emt 0:00:34]} Rh3+ {[%emt 0:00:06]} 67. Kd2 {[%emt 0:00:04]} Rh2+ {[%emt 0:00:20]} 68. Kc1 {[%emt 0:00:18]} Ke4 {[%emt 0:01:22]} 69. Nc5+ {[%emt 0:01:45]} Ke3 {[%emt 0:00:02]} 70. Nxe6 {[%emt 0:09:02]} Kd3 {[%emt 0:00:02]} 71. Bb4 {[%emt 0:00:00]} Rh6 {[%emt 0:00:29]} 72. Ng7 {[%emt 0:00:00]} Rg6 {[%emt 0:00:42]} 73. Nf5 {[%emt 0:00:00]} Ke4 {[%emt 0:00:20]} 74. Ne7 {[%emt 0:00:00]} Rg1+ {[%emt 0:00:35]} 75. Kb2 {[%emt 0:00:00]} Kxd4 {[%emt 0:07:26]} 76. Nc6+ {[%emt 0:00:00]} Kd3 {[%emt 0:00:00]} 77. e6 {[%emt 0:00:00]} Rg2+ {[%emt 0:00:00]} 78. Ka3 {[%emt 0:00:00]} Re2 {[%emt 0:00:00]} 79. e7 {[%emt 0:00:00]} Re6 {[%emt 0:00:00]} 80. Nxa7 {[%emt 0:00:00]} Kc2 {[%emt 0:00:00]} 81. Bc5 {[%emt 0:00:00]} d4 {[%emt 0:00:00]} 82. Nb5 {[%emt 0:00:00]} 1-0

[Event "1000GM Schev-C-B February 2024"]
[Site "Santa Clara"]
[Date "2024.02.24"]
[Round "1.4"]
[White "Echavarria, Johann"]
[Black "Chinni, Rishabh"]
[Result "1-0"]
[ECO "E11"]
[WhiteElo "2269"]
[BlackElo "1939"]
[Annotator "RC"]
[PlyCount "73"]
[EventDate "2024.02.13"]
[EventType "schev"]
[EventCountry "USA"]
[SourceTitle "playchess.com"]
[Source "ChessBase"]
[SourceQuality "1"]
[TimeControl "5400+30"]

1. d4 {[%emt 0:00:04]} Nf6 {[%emt 0:00:07]} 2. c4 {[%emt 0:00:02]} e6 {[%emt 0:00:07]} 3. Nf3 {[%emt 0:00:04]} Bb4+ {[%emt 0:00:05]} 4. Bd2 {[%emt 0:00:05]} a5 {[%emt 0:00:07]} 5. a3 {[%emt 0:00:06]} Be7 {[%emt 0:00:10]} 6. Nc3 {[%emt 0:00:07]} d5 {[%emt 0:00:16]} 7. Bf4 {[%emt 0:00:06]} c6 {[%emt 0:01:24]} 8. e3 {[%emt 0:00:08]} O-O {[%emt 0:00:35]} 9. h3 {[%emt 0:00:26]} Bd6 {[%emt 0:04:52]} 10. c5 {[%emt 0:02:04]} Bxf4 {[%emt 0:01:19]} 11. exf4 {[%emt 0:00:02]} Nbd7 {[%emt 0:11:26]} 12. Bd3 {[%emt 0:00:17]} b6 {[%emt 0:06:21]} 13. b4 {[%emt 0:00:07]} bxc5 {[%emt 0:00:26]} 14. bxc5 {[%emt 0:00:05]} Ba6 {[%emt 0:00:13]} 15. Bxa6 {[%emt 0:03:39]} Rxa6 {[%emt 0:00:06]} 16. Qa4 {[%emt 0:00:06]} Qb8 {[%emt 0:02:42]} 17. Ne2 {[%emt 0:05:53]} Qb2 {[%emt 0:06:28]} 18. Qd1 {[%emt 0:04:12]} Raa8 {[%emt 0:08:26]} 19. O-O {[%emt 0:06:51]} Ne4 {[%emt 0:05:52]} 20. Qd3 {[%emt 0:03:14]} Qb7 {[%emt 0:05:33]} 21. Rab1 {[%emt 0:05:54]} Qc7 {[%emt 0:00:18]} 22. Ne5 {[%emt 0:14:05]} Rab8 {[%emt 0:06:04]} 23. Nxd7 {[%emt 0:02:18]} Qxd7 {[%emt 0:39:03]} 24. f3 {[%emt 0:00:43]} Nf6 {[%emt 0:00:00]} 25. Qa6 {[%emt 0:01:10]} Ra8 {[%emt 0:00:00]} 26. Qb7 {[%emt 0:01:16]} Ra7 {[%emt 0:00:00]} 27. Qb6 {[%emt 0:07:20]} Rfa8 {[%emt 0:00:00]} 28. Nc1 {[%emt 0:00:44]} Qc8 {[%emt 0:00:00]} 29. Nd3 {[%emt 0:00:19]} Nd7 {[%emt 0:00:00]} 30. Qb3 {[%emt 0:00:15]} Rb8 {[%emt 0:00:00]} 31. Qa4 {[%emt 0:01:47]} Ra6 {[%emt 0:00:52]} 32. Rxb8 {[%emt 0:02:06]} Nxb8 {[%emt 0:00:23]} 33. Rb1 {[%emt 0:00:42]} Nd7 {[%emt 0:02:01]} 34. Qb3 {[%emt 0:41:13]} Ra7 {[%emt 0:02:14]} 35. Ne5 f6 {[%emt 0:00:30]} 36. Nxd7 Qxd7 37. Qb8+ {[%emt 0:01:30]} 1-0

[Event "1000GM Schev-C-B February 2024"]
[Site "Santa Clara"]
[Date "2024.02.24"]
[Round "1.5"]
[White "Dominguez Aguilar, Guillermo"]
[Black "Jin, Austin"]
[Result "1-0"]
[ECO "E06"]
[WhiteElo "2319"]
[BlackElo "1836"]
[Annotator "RC"]
[PlyCount "111"]
[EventDate "2024.02.13"]
[EventType "schev"]
[EventCountry "USA"]
[SourceTitle "playchess.com"]
[Source "ChessBase"]
[SourceQuality "1"]
[TimeControl "5400+30"]

1. c4 {[%emt 0:00:30]} e6 {[%emt 0:01:22]} 2. Nf3 {[%emt 0:00:00]} d5 {[%emt 0:00:26]} 3. g3 {[%emt 0:00:29]} Nf6 {[%emt 0:00:33]} 4. Bg2 {[%emt 0:00:07]} Be7 {[%emt 0:00:18]} 5. O-O {[%emt 0:00:29]} O-O {[%emt 0:00:24]} 6. d4 {[%emt 0:01:12]} c6 {[%emt 0:00:14]} 7. Nc3 {[%emt 0:00:23]} b6 {[%emt 0:00:28]} 8. Bf4 {[%emt 0:01:25]} Bb7 {[%emt 0:01:07]} 9. Rc1 {[%emt 0:05:04]} Na6 {[%emt 0:02:51]} 10. cxd5 {[%emt 0:06:10]} Nxd5 {[%emt 0:05:23]} 11. Ne5 {[%emt 1:20:11]} Rc8 {[%emt 0:23:00]} 12. Qa4 {[%emt 0:00:00]} b5 {[%emt 0:07:17]} 13. Qb3 {[%emt 0:00:00]} Nac7 {[%emt 0:11:57]} 14. Bd2 {[%emt 0:00:00]} Bd6 {[%emt 0:06:59]} 15. Ne4 {[%emt 0:00:00]} Ne8 {[%emt 0:03:45]} 16. Rfd1 {[%emt 0:00:00]} Qe7 {[%emt 0:06:10]} 17. Nxd6 {[%emt 0:00:00]} Nxd6 {[%emt 0:00:29]} 18. e4 {[%emt 0:00:00]} Nb6 {[%emt 0:01:54]} 19. Bb4 {[%emt 0:00:00]} Rfd8 {[%emt 0:01:52]} 20. Qa3 {[%emt 0:00:00]} Qc7 {[%emt 0:01:40]} 21. b3 {[%emt 0:00:00]} Qb8 {[%emt 0:02:32]} 22. Rc2 {[%emt 0:00:00]} c5 {[%emt 0:10:26]} 23. dxc5 {[%emt 0:00:00]} Nxe4 {[%emt 0:00:33]} 24. Nd3 {[%emt 0:00:00]} Nd7 {[%emt 0:03:21]} 25. Qc1 {[%emt 0:00:00]} Qa8 {[%emt 0:02:18]} 26. Ba5 {[%emt 0:00:00]} Re8 {[%emt 0:01:22]} 27. f3 {[%emt 0:00:00]} Nef6 {[%emt 0:01:34]} 28. Qe3 {[%emt 0:00:00]} Nd5 {[%emt 0:01:50]} 29. Qf2 {[%emt 0:00:00]} e5 {[%emt 0:00:45]} 30. b4 {[%emt 0:00:00]} N5f6 {[%emt 0:00:37]} 31. Ne1 {[%emt 0:00:00]} Nb8 {[%emt 0:00:58]} 32. Bh3 {[%emt 0:00:00]} Nc6 {[%emt 0:00:37]} 33. Bxc8 {[%emt 0:00:00]} Rxc8 {[%emt 0:00:02]} 34. Rcd2 {[%emt 0:00:00]} Nd4 {[%emt 0:00:31]} 35. Rxd4 {[%emt 0:00:00]} exd4 {[%emt 0:00:03]} 36. Rxd4 {[%emt 0:00:00]} Re8 {[%emt 0:00:55]} 37. Rd3 {[%emt 0:00:00]} Bd5 {[%emt 0:00:29]} 38. a3 {[%emt 0:00:43]} h5 {[%emt 0:01:17]} 39. Bc7 {[%emt 0:01:32]} h4 {[%emt 0:00:23]} 40. g4 {[%emt 0:00:30]} Nh7 {[%emt 0:00:18]} 41. Qxh4 {[%emt 0:03:15]} Qc6 {[%emt 0:00:49]} 42. Bd6 {[%emt 0:00:17]} Bc4 {[%emt 0:00:32]} 43. Rd2 {[%emt 0:01:17]} Ng5 {[%emt 0:00:25]} 44. Qxg5 {[%emt 0:00:11]} Rxe1+ {[%emt 0:00:06]} 45. Kg2 {[%emt 0:00:04]} Qe8 {[%emt 0:00:45]} 46. Bg3 {[%emt 0:01:02]} Bf1+ {[%emt 0:00:46]} 47. Kf2 {[%emt 0:01:59]} Bh3 {[%emt 0:00:23]} 48. Bc7 {[%emt 0:07:40]} f6 {[%emt 0:01:08]} 49. Qd5+ {[%emt 0:00:00]} Kh7 {[%emt 0:00:07]} 50. Qf5+ {[%emt 0:00:00]} Kh6 {[%emt 0:00:57]} 51. Bf4+ {[%emt 0:00:00]} g5 {[%emt 0:00:01]} 52. Qxf6+ {[%emt 0:00:00]} Kh7 {[%emt 0:00:07]} 53. Qf5+ {[%emt 0:00:00]} Kh8 {[%emt 0:00:22]} 54. Bxg5 {[%emt 0:00:00]} Rf1+ {[%emt 0:00:14]} 55. Kg3 {[%emt 0:00:00]} Bxg4 {[%emt 0:01:09]} 56. Bf6+ {[%emt 0:00:00]} 1-0